bitfinex/quotes_BTCUSD_20250916
["timestamp","ask_amount","ask_price","bid_price","bid_amount"]
[1758013164416,0.002,115860.0,115850.0,0.88985194]
[1758013165843,0.002,115860.0,115850.0,0.74617194]
[1758013166057,0.002,115860.0,115850.0,0.88985194]
[1758013171783,0.002,115860.0,115850.0,0.88981194]
[1758013173233,0.002,115860.0,115850.0,0.53806731]
[1758013173476,0.002,115860.0,115850.0,0.88981194]
[1758013173820,0.02579,115860.0,115850.0,0.88981194]
[1758013177981,0.02579,115860.0,115850.0,0.85056965]
[1758013186605,0.02889,115860.0,115850.0,0.85056965]
[1758013187538,0.02889,115860.0,115850.0,0.82462095]
[1758013188767,0.02889,115860.0,115850.0,0.89098095]
[1758013198622,0.0051,115860.0,115850.0,0.89098095]
[1758013199627,0.002,115860.0,115850.0,0.89098095]
[1758013200519,0.002,115860.0,115850.0,0.97850447]
[1758013200750,0.001,115860.0,115850.0,0.97850447]
[1758013200969,0.0001,115870.0,115860.0,0.17262213]
[1758013201207,0.0001,115870.0,115860.0,0.62876447]
[1758013202081,0.19746703,115880.0,115870.0,0.0301519]
[1758013202291,0.18133684,115880.0,115870.0,0.34639913]
[1758013204443,0.18133684,115880.0,115870.0,0.34739913]
[1758013206814,0.18133684,115880.0,115870.0,0.65990147]
[1758013210929,0.18133684,115880.0,115870.0,0.65986147]
[1758013211146,0.18133684,115880.0,115870.0,0.20375913]
[1758013211368,0.18133684,115880.0,115870.0,0.34735913]
[1758013217998,0.18133684,115880.0,115870.0,0.65986147]
[1758013219179,0.0001,115880.0,115870.0,0.65986147]
[1758013219409,0.01620213,115890.0,115880.0,0.20274423]
[1758013219640,0.0001,115890.0,115880.0,0.51524657]
[1758013220797,0.0011,115890.0,115880.0,0.51524657]
[1758013221032,0.002,115890.0,115880.0,0.51524657]
[1758013221753,0.001,115890.0,115880.0,0.51524657]
[1758013221980,0.002,115890.0,115880.0,0.58889722]
[1758013222209,0.002,115890.0,115880.0,0.65525722]
[1758013222347,0.001,115890.0,115880.0,0.65525722]
[1758013222567,0.69737464,115910.0,115900.0,0.17256255]
[1758013222773,0.78489816,115910.0,115900.0,0.31616255]
[1758013223062,0.78489816,115910.0,115900.0,0.31516255]
[1758013223676,0.78494546,115910.0,115900.0,0.31516255]
[1758013223885,0.78594546,115910.0,115900.0,0.31516255]
[1758013224343,0.78694546,115910.0,115900.0,0.31516255]
[1758013225674,0.69942194,115910.0,115900.0,0.31516255]
[1758013226080,0.69942194,115910.0,115900.0,0.17156255]
[1758013226318,0.17256255,115900.0,115890.0,0.0001]
[1758013226533,0.17257744,115890.0,115880.0,0.23852578]
[1758013226741,0.48507978,115890.0,115880.0,0.23852578]
[1758013226947,0.17257744,115890.0,115880.0,0.23852578]
[1758013227400,0.17267744,115890.0,115880.0,0.41111811]
[1758013227841,0.17267744,115890.0,115880.0,0.41311811]
[1758013228489,0.0001,115890.0,115880.0,0.41311811]
[1758013228702,0.17267744,115890.0,115880.0,0.41311811]
[1758013230162,0.17267744,115890.0,115880.0,0.41411811]
[1758013230624,0.17267744,115890.0,115880.0,0.24160578]
[1758013231240,0.17267744,115890.0,115880.0,0.41419811]
[1758013233633,0.57120923,115900.0,115880.0,0.41419811]
[1758013233843,0.17257744,115890.0,115880.0,0.41419811]
[1758013234692,0.17257744,115890.0,115880.0,0.41119811]
[1758013234902,0.17257744,115890.0,115880.0,0.41219811]
[1758013235542,0.17257744,115890.0,115880.0,0.41229811]
[1758013236112,0.17257744,115890.0,115880.0,0.41129811]
[1758013236518,0.17257744,115890.0,115880.0,0.41329811]
[1758013236777,0.17257744,115890.0,115880.0,0.41429811]
[1758013242348,0.52406003,115890.0,115880.0,0.24162578]
[1758013242777,0.52406003,115890.0,115880.0,0.41421811]
[1758013243313,0.52406003,115890.0,115880.0,0.24162578]
[1758013243976,0.52406003,115890.0,115880.0,0.41421811]
[1758013246469,0.17257744,115890.0,115880.0,0.41421811]
[1758013246688,0.52406003,115890.0,115880.0,0.41421811]
[1758013246891,0.54016919,115890.0,115880.0,0.41421811]
[1758013247095,0.1886866,115890.0,115880.0,0.41421811]
[1758013247876,0.18868792,115890.0,115880.0,0.41421811]
[1758013248112,0.17257744,115890.0,115880.0,0.41421811]
[1758013248298,0.18868892,115890.0,115880.0,0.41421811]
[1758013249293,0.18868892,115890.0,115880.0,0.24162578]
[1758013249539,0.18868892,115890.0,115880.0,0.41421811]
[1758013252170,0.18868892,115890.0,115880.0,0.24166578]
[1758013252745,0.54017151,115890.0,115880.0,0.24166578]
[1758013254178,0.54017808,115890.0,115880.0,0.24166578]
[1758013254391,0.54017808,115890.0,115880.0,0.41425811]
[1758013254826,0.18869549,115890.0,115880.0,0.41425811]
[1758013256182,0.18869549,115890.0,115880.0,0.24166578]
[1758013256603,0.18869549,115890.0,115880.0,0.09802578]
[1758013256823,0.54017808,115890.0,115880.0,0.24170578]
[1758013257822,0.18869549,115890.0,115880.0,0.41429811]
[1758013258039,0.54017808,115890.0,115880.0,0.41429811]
[1758013258443,0.54017808,115890.0,115880.0,0.24170578]
[1758013259323,0.54017808,115890.0,115880.0,0.41429811]
[1758013259552,0.18869549,115890.0,115880.0,0.41429811]
[1758013260393,0.18869549,115890.0,115880.0,0.24170578]
[1758013260601,0.18870851,115890.0,115880.0,0.24170578]
[1758013260811,0.18870851,115890.0,115880.0,0.41429811]
[1758013261013,0.17257744,115890.0,115880.0,0.41429811]
[1758013261227,0.18870854,115890.0,115880.0,0.41429811]
[1758013261672,0.18870854,115890.0,115880.0,0.24170578]
[1758013262110,0.18870854,115890.0,115880.0,0.41429811]
[1758013262731,0.18870854,115890.0,115880.0,0.24170578]
[1758013262953,0.18870854,115890.0,115880.0,0.24166578]
[1758013263340,0.18870854,115890.0,115880.0,0.09802578]
[1758013263548,0.97919724,115890.0,115880.0,0.06787388]
[1758013263744,0.97919724,115890.0,115880.0,0.14678]
[1758013263932,1.00514349,115890.0,115880.0,0.14678]
[1758013264139,0.30217831,115890.0,115880.0,0.14678]
[1758013264350,1.00514349,115890.0,115880.0,0.14478]
[1758013264558,0.6536609,115890.0,115880.0,0.14478]
[1758013266293,0.6536609,115890.0,115880.0,0.0011]
[1758013268152,0.7973009,115890.0,115880.0,0.0011]
[1758013269195,0.6536609,115890.0,115880.0,0.0011]
[1758013269387,0.7973809,115890.0,115880.0,0.0011]
[1758013271369,0.6536609,115890.0,115880.0,0.0011]
[1758013271578,0.7973409,115890.0,115880.0,0.0011]
[1758013276077,0.44585831,115890.0,115880.0,0.0011]
[1758013276275,0.7973009,115890.0,115880.0,0.0011]
[1758013277341,0.30217831,115890.0,115880.0,0.0011]
[1758013277565,0.7973009,115890.0,115880.0,0.0011]
[1758013277794,0.44585831,115890.0,115880.0,0.0011]
[1758013278018,0.6536609,115890.0,115880.0,0.0011]
[1758013282883,0.7973009,115890.0,115880.0,0.0011]
[1758013283085,0.6536609,115890.0,115880.0,0.0011]
[1758013283300,0.44581831,115890.0,115880.0,0.01835923]
[1758013283505,0.7973009,115890.0,115880.0,0.01835923]
[1758013284771,0.79728141,115890.0,115880.0,0.01835923]
[1758013285450,0.65364141,115890.0,115880.0,0.01835923]
[1758013286789,0.65364141,115890.0,115880.0,0.08350887]
[1758013287319,0.79724141,115890.0,115880.0,0.08350887]
[1758013288979,0.79724141,115890.0,115880.0,0.06624964]
[1758013290965,0.44575882,115890.0,115880.0,0.06624964]
[1758013291178,0.79724141,115890.0,115880.0,0.06624964]
[1758013292692,1.148724,115890.0,115880.0,0.0011]
[1758013292971,1.15476918,115890.0,115880.0,0.0011]
[1758013293119,1.15476918,115890.0,115880.0,0.001]
[1758013293953,0.17259233,115880.0,115870.0,0.0001]
[1758013294158,0.77131005,115880.0,115870.0,0.0001]
[1758013294770,0.79725789,115880.0,115870.0,0.0001]
[1758013296488,0.79825789,115880.0,115870.0,0.0001]
[1758013297393,0.79925789,115880.0,115870.0,0.0001]
[1758013301865,0.61672419,115880.0,115870.0,0.0001]
[1758013302055,0.76032419,115880.0,115870.0,0.0001]
[1758013303036,0.75932419,115880.0,115870.0,0.0001]
[1758013303245,0.75832419,115880.0,115870.0,0.0001]
[1758013303441,0.76032419,115880.0,115870.0,0.0001]
[1758013307672,0.4477753,115880.0,115870.0,0.0001]
[1758013309566,0.3041753,115880.0,115870.0,0.0001]
[1758013309787,0.4477753,115880.0,115870.0,0.0001]
[1758013312015,0.3041753,115880.0,115870.0,0.0001]
[1758013312459,0.4477753,115880.0,115870.0,0.0001]
[1758013315341,0.44777288,115880.0,115870.0,0.0001]
[1758013317102,0.44777396,115880.0,115870.0,0.0001]
[1758013317309,0.30417396,115880.0,115870.0,0.0001]
[1758013317486,0.44777396,115880.0,115870.0,0.0001]
[1758013317714,0.30417396,115880.0,115870.0,0.31264889]
[1758013319308,0.30417684,115880.0,115870.0,0.31264889]
[1758013320282,0.44777684,115880.0,115870.0,0.31264889]
[1758013320946,0.44777684,115880.0,115870.0,0.0001]
[1758013321192,0.44777684,115880.0,115870.0,0.31264889]
[1758013322668,0.30417684,115880.0,115870.0,0.31264889]
[1758013322861,0.44777684,115880.0,115870.0,0.31264889]
[1758013324349,0.44777684,115880.0,115870.0,0.0001]
[1758013324575,0.44777684,115880.0,115870.0,0.31264889]
[1758013326346,0.44777684,115880.0,115870.0,0.0001]
[1758013329041,0.44777684,115880.0,115870.0,0.31264889]
[1758013330407,0.21665332,115880.0,115870.0,0.34280079]
[1758013330619,0.19070548,115880.0,115870.0,0.34280079]
[1758013331056,0.19070548,115880.0,115870.0,0.48640079]
[1758013332120,0.18970548,115880.0,115870.0,0.0302519]
[1758013332336,0.18870548,115880.0,115870.0,0.48640079]
[1758013332783,0.18870548,115880.0,115870.0,0.0312519]
[1758013332996,0.276229,115880.0,115870.0,0.0011]
[1758013333921,0.30217673,115880.0,115870.0,0.0001]
[1758013334349,0.30317673,115880.0,115870.0,0.0001]
[1758013335690,0.30217673,115880.0,115870.0,0.0001]
[1758013335903,0.30417673,115880.0,115870.0,0.0001]
[1758013336803,0.30317673,115880.0,115870.0,0.0001]
[1758013337023,0.30417673,115880.0,115870.0,0.0001]
[1758013340169,0.30418158,115880.0,115870.0,0.0001]
[1758013344311,0.30418317,115880.0,115870.0,0.0001]
[1758013347771,0.30318317,115880.0,115870.0,0.0001]
[1758013348639,0.30418317,115880.0,115870.0,0.0001]
[1758013350165,0.61673206,115880.0,115870.0,0.0001]
[1758013350384,0.62277929,115880.0,115870.0,0.0001]
[1758013350779,0.62278665,115880.0,115870.0,0.0001]
[1758013351447,0.17260723,115870.0,115860.0,0.0001]
[1758013351652,0.4198577,115870.0,115860.0,0.0001]
[1758013352364,0.44580803,115870.0,115860.0,0.0001]
[1758013352780,0.44580803,115870.0,115860.0,0.0011473]
[1758013354272,0.44580108,115870.0,115860.0,0.0011473]
[1758013354494,0.52207175,115870.0,115860.0,0.0001473]
[1758013354681,0.52307175,115870.0,115860.0,0.0001473]
[1758013354909,0.52507175,115870.0,115860.0,0.0001473]
[1758013355351,0.52407175,115870.0,115860.0,0.0001473]
[1758013355580,0.52507175,115870.0,115860.0,0.0001473]
[1758013355798,0.44880108,115870.0,115860.0,0.0001473]
[1758013359355,0.30520108,115870.0,115860.0,0.0001473]
[1758013359568,0.44880108,115870.0,115860.0,0.0001473]
[1758013359779,0.47838108,115870.0,115860.0,0.0001473]
[1758013360500,0.47638108,115870.0,115860.0,0.0001473]
[1758013360693,0.47538108,115870.0,115860.0,0.0001473]
[1758013360902,0.33478108,115870.0,115860.0,0.0001473]
[1758013361116,0.47838108,115870.0,115860.0,0.0001473]
[1758013361313,0.33478108,115870.0,115860.0,0.0001473]
[1758013361546,0.47838108,115870.0,115860.0,0.0001473]
[1758013363808,0.33478108,115870.0,115860.0,0.0001473]
[1758013364052,0.47838108,115870.0,115860.0,0.0001473]
[1758013364899,0.47838317,115870.0,115860.0,0.0001473]
[1758013367585,0.47838317,115870.0,115860.0,0.35179878]
[1758013367785,0.33478317,115870.0,115860.0,0.35179878]
[1758013368018,0.47838317,115870.0,115860.0,0.35179878]
[1758013368373,0.47838317,115870.0,115860.0,0.0001473]
[1758013370548,0.33478317,115870.0,115860.0,0.0001473]
[1758013370760,0.47838317,115870.0,115860.0,0.0001473]
[1758013371076,0.33478317,115870.0,115860.0,0.0001473]
[1758013371263,0.47838317,115870.0,115860.0,0.0001473]
[1758013372915,0.33478317,115870.0,115860.0,0.0001473]
[1758013373127,0.47838317,115870.0,115860.0,0.0001473]
[1758013373339,0.47838317,115870.0,115860.0,0.35179878]
[1758013375258,0.47838317,115870.0,115860.0,0.0001473]
[1758013375506,0.47838317,115870.0,115860.0,0.35179878]
[1758013376553,0.33478317,115870.0,115860.0,0.35179878]
[1758013376738,0.47838317,115870.0,115860.0,0.35179878]
[1758013377172,0.33478317,115870.0,115860.0,0.35179878]
[1758013377379,0.32964317,115870.0,115860.0,0.35179878]
[1758013377822,0.33279317,115870.0,115860.0,0.35179878]
[1758013378884,0.33494317,115870.0,115860.0,0.35179878]
[1758013379306,0.33494317,115870.0,115860.0,0.0001473]
[1758013379515,0.33494317,115870.0,115860.0,0.35179878]
[1758013381731,0.31882108,115870.0,115860.0,0.35179878]
[1758013381946,0.33496388,115870.0,115860.0,0.35179878]
[1758013382167,0.31882108,115870.0,115860.0,0.35179878]
[1758013382991,0.33496382,115870.0,115860.0,0.35179878]
[1758013383479,0.33496382,115870.0,115860.0,0.0001473]
[1758013383748,0.33496382,115870.0,115860.0,0.35179878]
[1758013385726,0.33496382,115870.0,115860.0,0.49539878]
[1758013386168,0.3349635,115870.0,115860.0,0.49539878]
[1758013386882,0.3349635,115870.0,115860.0,0.35179878]
[1758013387098,0.3349635,115870.0,115860.0,0.49539878]
[1758013387343,0.3349635,115870.0,115860.0,0.35179878]
[1758013387560,0.3349635,115870.0,115860.0,0.49539878]
[1758013389709,0.3296635,115870.0,115860.0,0.35179878]
[1758013389924,0.3296635,115870.0,115860.0,0.49539878]
[1758013390134,0.3326435,115870.0,115860.0,0.49539878]
[1758013390551,0.3346035,115870.0,115860.0,0.49539878]
[1758013392031,0.3346035,115870.0,115860.0,0.66802091]
[1758013392467,0.3296635,115870.0,115860.0,0.66802091]
[1758013392687,0.3052235,115870.0,115860.0,0.66802091]
[1758013392924,0.3052235,115870.0,115860.0,1.01967239]
[1758013393562,0.3052235,115870.0,115860.0,0.66802091]
[1758013394215,0.3297335,115870.0,115860.0,0.66802091]
[1758013394403,0.3297335,115870.0,115860.0,0.52442091]
[1758013394637,0.3297335,115870.0,115860.0,0.66798091]
[1758013394791,0.3297335,115870.0,115860.0,0.52442091]
[1758013395004,0.3297335,115870.0,115860.0,0.66798091]
[1758013396584,0.24220998,115870.0,115860.0,1.01963239]
[1758013396819,0.04509275,115870.0,115860.0,1.04978429]
[1758013397353,0.01914242,115870.0,115860.0,0.69813281]
[1758013397582,0.01913885,115870.0,115860.0,0.69813281]
[1758013398364,0.01913885,115870.0,115860.0,1.04978429]
[1758013398786,0.003,115870.0,115860.0,1.04978429]
[1758013399454,0.002,115870.0,115860.0,1.04978429]
[1758013399670,0.05055775,115880.0,115870.0,0.17260723]
[1758013399889,0.05055775,115880.0,115870.0,0.52325871]
[1758013400111,0.22315008,115880.0,115870.0,0.52225871]
[1758013400326,0.24226893,115880.0,115870.0,0.52225871]
[1758013400597,0.0696766,115880.0,115870.0,0.52225871]
[1758013400804,0.05353775,115880.0,115870.0,0.52225871]
[1758013401017,0.05453775,115880.0,115870.0,0.52225871]
[1758013401225,0.05653775,115880.0,115870.0,0.52225871]
[1758013401429,0.05643775,115880.0,115870.0,0.66581871]
[1758013402309,0.22903008,115880.0,115870.0,0.52225871]
[1758013402513,0.24516893,115880.0,115870.0,0.66581871]
[1758013402724,0.0725766,115880.0,115870.0,0.66581871]
[1758013402924,0.05643775,115880.0,115870.0,0.66581871]
[1758013403795,0.22903008,115880.0,115870.0,0.66591871]
[1758013404006,0.24516893,115880.0,115870.0,0.66591871]
[1758013404216,0.01913885,115880.0,115870.0,0.55251061]
[1758013404464,0.003,115880.0,115870.0,0.69607061]
[1758013405089,0.02751,115880.0,115870.0,0.55251061]
[1758013405503,0.02751,115880.0,115870.0,0.69607061]
[1758013406153,0.02751,115880.0,115870.0,0.55251061]
[1758013406886,0.02751,115880.0,115870.0,0.69607061]
[1758013412695,0.02751,115880.0,115870.0,0.55251061]
[1758013412904,0.03283,115880.0,115870.0,0.55251061]
[1758013413113,0.03283,115880.0,115870.0,0.69607061]
[1758013413341,0.20542233,115880.0,115870.0,0.20085913]
[1758013414197,0.03283,115880.0,115870.0,0.69607061]
[1758013414631,0.03071,115880.0,115870.0,0.69607061]
[1758013417290,0.03071,115880.0,115870.0,0.55251061]
[1758013417710,0.03071,115880.0,115870.0,0.69607061]
[1758013419631,0.03283,115880.0,115870.0,0.69607061]
[1758013419814,0.20542233,115880.0,115870.0,0.69607061]
[1758013422068,0.03283,115880.0,115870.0,0.69607061]
[1758013422484,0.03071,115880.0,115870.0,0.69607061]
[1758013424560,0.20542233,115880.0,115870.0,0.55251061]
[1758013424794,0.20542233,115880.0,115870.0,0.69607061]
[1758013425219,0.22155676,115880.0,115870.0,0.69607061]
[1758013425973,0.22155676,115880.0,115870.0,0.65688561]
[1758013426962,0.20542233,115880.0,115870.0,0.65688561]
[1758013427179,0.22156259,115880.0,115870.0,0.65688561]
[1758013429222,0.04897026,115880.0,115870.0,0.65688561]
[1758013429534,0.03071,115880.0,115870.0,0.65688561]
[1758013429950,0.03283,115880.0,115870.0,0.65688561]
[1758013430720,0.20542233,115880.0,115870.0,0.65688561]
[1758013430965,0.22156259,115880.0,115870.0,0.65688561]
[1758013431218,0.04365026,115880.0,115870.0,0.65688561]
[1758013431421,0.02751,115880.0,115870.0,0.65688561]
[1758013431633,0.03071,115880.0,115870.0,0.65688561]
[1758013431992,0.20330233,115880.0,115870.0,0.65688561]
[1758013432210,0.21944259,115880.0,115870.0,0.65688561]
[1758013432421,0.04685026,115880.0,115870.0,0.65688561]
[1758013432788,0.20330233,115880.0,115870.0,0.65688561]
[1758013432998,0.21944259,115880.0,115870.0,0.65688561]
[1758013437092,0.04685026,115880.0,115870.0,0.65688561]
[1758013437335,0.20330233,115880.0,115870.0,0.34441913]
[1758013437506,0.21944259,115880.0,115870.0,0.65688561]
[1758013439728,0.22153259,115880.0,115870.0,0.65688561]
[1758013442993,0.20539233,115880.0,115870.0,0.65688561]
[1758013443631,0.0328,115880.0,115870.0,0.65688561]
[1758013443864,0.20539233,115880.0,115870.0,0.65688561]
[1758013446369,0.0328,115880.0,115870.0,0.65688561]
[1758013446568,0.20539233,115880.0,115870.0,0.65688561]
[1758013446997,0.22154732,115880.0,115870.0,0.65688561]
[1758013447652,0.22154775,115880.0,115870.0,0.65688561]
[1758013452297,0.04895542,115880.0,115870.0,0.65688561]
[1758013452502,0.20539233,115880.0,115870.0,0.65688561]
[1758013452677,0.04895542,115880.0,115870.0,0.65688561]
[1758013452895,0.20539233,115880.0,115870.0,0.65688561]
[1758013453247,0.22154799,115880.0,115870.0,0.65688561]
[1758013453455,0.04895566,115880.0,115870.0,0.65688561]
[1758013453660,0.0328,115880.0,115870.0,0.65688561]
[1758013454092,0.20539233,115880.0,115870.0,0.65688561]
[1758013454292,0.22154799,115880.0,115870.0,0.65688561]
[1758013455319,0.04895566,115880.0,115870.0,0.65688561]
[1758013455537,0.0328,115880.0,115870.0,0.65688561]
[1758013455751,0.20539233,115880.0,115870.0,0.65688561]
[1758013455965,0.22154799,115880.0,115870.0,0.65688561]
[1758013456391,0.04895566,115880.0,115870.0,0.65688561]
[1758013456604,0.20330233,115880.0,115870.0,0.65688561]
[1758013456846,0.21945799,115880.0,115870.0,0.65688561]
[1758013458167,0.04686566,115880.0,115870.0,0.65688561]
[1758013458373,0.20330233,115880.0,115870.0,0.65688561]
[1758013458667,0.21945799,115880.0,115870.0,0.65688561]
[1758013459552,0.04686566,115880.0,115870.0,0.65688561]
[1758013459759,0.20330233,115880.0,115870.0,0.65688561]
[1758013460039,0.04686566,115880.0,115870.0,0.65688561]
[1758013460262,0.03071,115880.0,115870.0,0.65688561]
[1758013461312,0.20330233,115880.0,115870.0,0.65688561]
[1758013461526,0.21945799,115880.0,115870.0,0.65688561]
[1758013462403,0.04686566,115880.0,115870.0,0.65688561]
[1758013462614,0.20330233,115880.0,115870.0,0.65688561]
[1758013462808,0.21945144,115880.0,115870.0,0.65688561]
[1758013463223,0.04685911,115880.0,115870.0,0.65688561]
[1758013463365,0.03071,115880.0,115870.0,0.65688561]
[1758013463784,0.02751,115880.0,115870.0,0.65688561]
[1758013467135,0.003,115880.0,115870.0,0.65688561]
[1758013467344,0.003,115880.0,115870.0,1.05687561]
[1758013467754,0.003,115880.0,115870.0,1.08281629]
[1758013468179,0.002,115880.0,115870.0,1.42281629]
[1758013468397,0.02783,115900.0,115890.0,0.20272934]
[1758013468603,0.02783,115900.0,115890.0,0.65767582]
[1758013468809,0.02992,115900.0,115890.0,0.65667582]
[1758013469236,0.02783,115900.0,115890.0,0.65667582]
[1758013469444,0.02773,115900.0,115890.0,0.65667582]
[1758013471295,0.02873,115900.0,115890.0,0.65677582]
[1758013471719,0.02873,115900.0,115890.0,0.51329582]
[1758013471920,0.02973,115900.0,115890.0,0.51329582]
[1758013472530,0.02973,115900.0,115890.0,0.65677582]
[1758013474292,0.002,115900.0,115890.0,0.65677582]
[1758013475473,0.002,115900.0,115890.0,0.37024744]
[1758013475720,0.001,115900.0,115890.0,0.68271392]
[1758013475953,0.001,115900.0,115890.0,0.69117211]
[1758013476161,0.002,115900.0,115890.0,0.69117211]
[1758013476371,0.52663,115910.0,115900.0,0.17256255]
[1758013476601,0.52663,115910.0,115900.0,0.65866093]
[1758013476797,0.52869,115910.0,115900.0,0.65866093]
[1758013477028,0.52869,115910.0,115900.0,0.65766093]
[1758013477234,0.70123766,115910.0,115900.0,0.65766093]
[1758013477557,0.70128496,115910.0,115900.0,0.65776093]
[1758013477804,0.70228496,115910.0,115900.0,0.65776093]
[1758013478196,0.5297373,115910.0,115900.0,0.65776093]
[1758013478398,0.70328496,115910.0,115900.0,0.65776093]
[1758013478841,0.5307373,115910.0,115900.0,0.65776093]
[1758013480670,0.5286773,115910.0,115900.0,0.65776093]
[1758013481650,0.5307373,115910.0,115900.0,0.51428093]
[1758013482108,0.5307373,115910.0,115900.0,0.65776093]
[1758013482664,0.5286773,115910.0,115900.0,0.65776093]
[1758013482864,0.5256173,115910.0,115900.0,0.65776093]
[1758013483295,0.5286773,115910.0,115900.0,0.65772093]
[1758013483492,0.5256173,115910.0,115900.0,0.65772093]
[1758013484145,0.5286773,115910.0,115900.0,0.65772093]
[1758013485792,0.5286773,115910.0,115900.0,0.69651832]
[1758013487285,0.5286773,115910.0,115900.0,0.55307832]
[1758013487487,0.5286773,115910.0,115900.0,0.69651832]
[1758013488333,0.5286773,115910.0,115900.0,0.55307832]
[1758013488841,0.5307373,115910.0,115900.0,0.20181445]
[1758013489054,0.5307373,115910.0,115900.0,0.69651832]
[1758013491779,0.5307373,115910.0,115900.0,0.55307832]
[1758013491985,0.5307373,115910.0,115900.0,0.69651832]
[1758013495354,0.54686235,115910.0,115900.0,0.69651832]
[1758013498345,0.54174235,115910.0,115900.0,0.69651832]
[1758013498750,0.5286673,115910.0,115900.0,0.69651832]
[1758013498966,0.5468989,115910.0,115900.0,0.69651832]
[1758013507890,0.54690398,115910.0,115900.0,0.69651832]
[1758013508325,0.5307573,115910.0,115900.0,0.69651832]
[1758013509118,0.54690424,115910.0,115900.0,0.69651832]
[1758013511536,0.54690424,115910.0,115900.0,0.55307832]
[1758013511756,0.54690424,115910.0,115900.0,0.69647832]
[1758013512401,0.5307573,115910.0,115900.0,0.34521445]
[1758013512634,1.07071632,115910.0,115900.0,0.0302519]
[1758013512847,1.22860886,115910.0,115900.0,0.1435]
[1758013513063,1.15823984,115910.0,115900.0,0.1435]
[1758013513704,1.1841807,115910.0,115900.0,0.1435]
[1758013515077,1.3275807,115910.0,115900.0,0.1435]
[1758013516780,1.1841807,115910.0,115900.0,0.1435]
[1758013518421,1.1841807,115910.0,115900.0,0.0001]
[1758013518674,0.83291683,115910.0,115900.0,0.0001]
[1758013518885,1.3275807,115910.0,115900.0,0.0001]
[1758013519296,1.1841807,115910.0,115900.0,0.0001]
[1758013519505,1.3275807,115910.0,115900.0,0.0001]
[1758013519717,1.18416495,115910.0,115900.0,0.0001]
[1758013519934,1.32756495,115910.0,115900.0,0.0001]
[1758013520157,0.83290108,115910.0,115900.0,0.0001]
[1758013520377,0.97630108,115910.0,115900.0,0.0001]
[1758013520589,1.32756495,115910.0,115900.0,0.0001]
[1758013522822,1.18416495,115910.0,115900.0,0.0001]
[1758013523043,0.83290108,115910.0,115900.0,0.17266255]
[1758013524984,0.83290108,115910.0,115900.0,0.0001]
[1758013525213,0.83290108,115910.0,115900.0,0.17266255]
[1758013525402,0.83290108,115910.0,115900.0,0.0001]
[1758013527308,0.83290108,115910.0,115900.0,0.17266255]
[1758013527514,0.83289664,115910.0,115900.0,0.0001]
[1758013528964,1.18416051,115910.0,115900.0,0.0001]
[1758013534198,1.18416273,115910.0,115900.0,0.0001]
[1758013535785,1.18416495,115910.0,115900.0,0.0001]
[1758013539181,1.18416978,115910.0,115900.0,0.0001]
[1758013539816,1.32756978,115910.0,115900.0,0.0001]
[1758013543729,1.32757973,115910.0,115900.0,0.0001]
[1758013546113,1.32757974,115910.0,115900.0,0.0001]
[1758013547917,0.97631587,115910.0,115900.0,0.0001]
[1758013548496,1.06275003,115910.0,115900.0,0.0001]
[1758013550097,0.97631587,115910.0,115900.0,0.0001]
[1758013551163,0.78867462,115910.0,115900.0,0.0001]
[1758013553810,0.47631587,115910.0,115900.0,0.0001]
[1758013557803,0.33291587,115910.0,115900.0,0.0001]
[1758013558026,0.47627587,115910.0,115900.0,0.0001]
[1758013559098,0.33291587,115910.0,115900.0,0.0001]
[1758013559316,0.47627587,115910.0,115900.0,0.0001]
[1758013559729,0.33291587,115910.0,115900.0,0.0001]
[1758013559944,0.47627587,115910.0,115900.0,0.0001]
[1758013561673,0.33291587,115910.0,115900.0,0.0001]
[1758013562080,0.47627587,115910.0,115900.0,0.0001]
[1758013563242,0.78863462,115910.0,115900.0,0.0001]
[1758013569324,0.77248809,115910.0,115900.0,0.0001]
[1758013569650,0.78864856,115910.0,115900.0,0.0001]
[1758013569848,0.77248809,115910.0,115900.0,0.0001]
[1758013570410,0.78864855,115910.0,115900.0,0.0001]
[1758013574614,0.87025485,115910.0,115900.0,0.0001]
[1758013574865,0.87631437,115910.0,115900.0,0.0001]
[1758013576854,0.17256255,115900.0,115890.0,0.0001]
[1758013577064,0.73196528,115900.0,115890.0,0.0001]
[1758013577266,0.73410528,115900.0,115890.0,0.0001]
[1758013577474,0.84645944,115900.0,115890.0,0.0001]
[1758013577688,0.87240381,115900.0,115890.0,0.0001]
[1758013578491,0.87845541,115900.0,115890.0,0.0001]
[1758013580530,0.73509541,115900.0,115890.0,0.0001]
[1758013580755,0.87845541,115900.0,115890.0,0.0001]
[1758013581417,0.73509541,115900.0,115890.0,0.0001]
[1758013581585,0.87845541,115900.0,115890.0,0.0001]
[1758013582210,0.87240381,115900.0,115890.0,0.0001]
[1758013582624,0.17257744,115890.0,115870.0,0.38242687]
[1758013582865,0.19543233,115880.0,115870.0,0.38242687]
[1758013583320,0.19543233,115880.0,115870.0,0.17270687]
[1758013583958,0.22137847,115880.0,115870.0,0.0001]
[1758013584188,0.22137847,115880.0,115870.0,0.0041]
[1758013584610,0.22137847,115880.0,115870.0,0.0031]
[1758013584928,0.22137847,115880.0,115870.0,0.17770723]
[1758013585145,0.22445847,115880.0,115870.0,0.17770723]
[1758013587133,0.23331364,115880.0,115870.0,0.17770723]
[1758013589593,0.23545364,115880.0,115870.0,0.17770723]
[1758013595596,0.05186614,115880.0,115870.0,0.17770723]
[1758013597692,0.22445847,115880.0,115870.0,0.17770723]
[1758013598902,0.24059786,115880.0,115870.0,0.17770723]
[1758013600350,0.24059786,115880.0,115870.0,0.49006598]
[1758013602668,0.24273786,115880.0,115870.0,0.49006598]
[1758013604064,0.24273786,115880.0,115870.0,0.17770723]
[1758013604412,0.24273786,115880.0,115870.0,0.49006598]
[1758013607848,0.24273786,115880.0,115870.0,0.529233]
[1758013608495,0.24273786,115880.0,115870.0,0.672593]
[1758013610818,0.24059786,115880.0,115870.0,0.672593]
[1758013611020,0.06800553,115880.0,115870.0,0.672593]
[1758013611245,0.22445847,115880.0,115870.0,0.672593]
[1758013611419,0.24063089,115880.0,115870.0,0.672593]
[1758013613525,0.24277089,115880.0,115870.0,0.672593]
[1758013614147,0.24276934,115880.0,115870.0,0.672593]
[1758013615692,0.06495701,115880.0,115870.0,0.672593]
[1758013615901,0.04211701,115880.0,115870.0,0.7027449]
[1758013616126,0.02594614,115880.0,115870.0,0.7027449]
[1758013617967,0.01627087,115890.0,115880.0,0.20274423]
[1758013618187,0.0001,115890.0,115880.0,0.55427]
[1758013619471,0.0001,115890.0,115880.0,0.61809151]
[1758013620329,0.0001,115890.0,115880.0,0.62009151]
[1758013620766,0.0001,115890.0,115880.0,0.62019151]
[1758013620984,0.06820496,115900.0,115890.0,0.17257744]
[1758013621205,0.06820496,115900.0,115890.0,0.66742321]